[Event "Catalonia Championship Veterans 2024"]
[Site "Salou Tarragona"]
[Date "2024.05.15"]
[Round "5.3"]
[White "Jove Grau, Lluis"]
[Black "Parals Marce, Luis"]
[Result "0-1"]
[ECO "A03"]
[WhiteElo "2049"]
[BlackElo "2000"]
[Annotator "RC"]
[PlyCount "106"]
[EventDate "2024.05.11"]
[EventType "swiss"]
[EventCountry "ESP"]
[SourceTitle "playchess.com"]
[Source "ChessBase"]
[SourceQuality "1"]
[TimeControl "5400+30"]

1. f4 {[%emt 0:07:02]} Nf6 {[%emt 0:02:00]} 2. Nf3 {[%emt 0:00:11]} g6 {[%emt 0:01:01]} 3. d3 {[%emt 0:00:11]} d5 {[%emt 0:00:22]} 4. g3 {[%emt 0:00:17]} Bg7 {[%emt 0:00:49]} 5. Bg2 {[%emt 0:00:05]} O-O {[%emt 0:01:07]} 6. O-O {[%emt 0:00:03]} c5 {[%emt 0:00:12]} 7. Nc3 {[%emt 0:00:17]} d4 {[%emt 0:08:24]} 8. Na4 {[%emt 0:00:44]} Na6 {[%emt 0:03:38]} 9. c4 {[%emt 0:02:03]} Rb8 {[%emt 0:05:13]} 10. Rb1 {[%emt 0:03:02]} Nd7 {[%emt 0:11:46]} 11. a3 {[%emt 0:10:06]} b6 {[%emt 0:08:12]} 12. b4 {[%emt 0:03:01]} Bb7 {[%emt 0:00:41]} 13. e4 {[%emt 0:01:53]} dxe3 {[%emt 0:01:21]} 14. Bxe3 {[%emt 0:00:07]} Qc8 {[%emt 0:07:44]} 15. Qc2 {[%emt 0:14:27]} cxb4 {[%emt 0:08:37]} 16. axb4 {[%emt 0:08:33]} e5 {[%emt 0:14:02]} 17. Nc3 {[%emt 0:03:39]} Nc7 {[%emt 0:01:15]} 18. Nxe5 {[%emt 0:20:34]} Nxe5 {[%emt 0:02:12]} 19. fxe5 {[%emt 0:00:31]} Bxe5 {[%emt 0:03:07]} 20. d4 {[%emt 0:00:15]} Bg7 {[%emt 0:00:31]} 21. d5 {[%emt 0:02:48]} Qd7 {[%emt 0:04:39]} 22. Rbd1 {[%emt 0:06:42]} Na6 {[%emt 0:04:35]} 23. Qd2 {[%emt 0:07:22]} Rbc8 {[%emt 0:00:59]} 24. Bd4 {[%emt 0:02:31]} f5 {[%emt 0:00:25]} 25. b5 {[%emt 0:01:42]} Nc5 {[%emt 0:00:43]} 26. Bxg7 {[%emt 0:00:25]} Qxg7 {[%emt 0:00:23]} 27. d6 {[%emt 0:00:42]} Bxg2 {[%emt 0:00:57]} 28. Kxg2 {[%emt 0:00:03]} Rcd8 {[%emt 0:03:22]} 29. Rfe1 {[%emt 0:00:21]} Rd7 {[%emt 0:00:34]} 30. Nd5 {[%emt 0:01:31]} Ne4 {[%emt 0:00:47]} 31. Ne7+ {[%emt 0:01:20]} Kh8 {[%emt 0:00:28]} 32. Qb4 {[%emt 0:00:51]} Rfd8 {[%emt 0:00:30]} 33. Nc6 {[%emt 0:00:27]} Re8 {[%emt 0:01:30]} 34. Rd5 {[%emt 0:00:17]} Qf6 {[%emt 0:00:39]} 35. Red1 {[%emt 0:00:21]} Nc3 {[%emt 0:00:20]} 36. R5d3 {[%emt 0:02:11]} Nxd1 {[%emt 0:00:07]} 37. Rxd1 {[%emt 0:00:05]} Re6 {[%emt 0:00:15]} 38. Ne7 {[%emt 0:00:31]} Rdxd6 {[%emt 0:00:58]} 39. Nd5 {[%emt 0:00:19]} Qe5 {[%emt 0:00:30]} 40. Rd2 {[%emt 0:00:58]} g5 {[%emt 0:00:48]} 41. h3 {[%emt 0:01:37]} f4 {[%emt 0:00:12]} 42. Qb2 {[%emt 0:00:35]} Qxb2 {[%emt 0:00:38]} 43. Rxb2 {[%emt 0:00:02]} Re4 {[%emt 0:01:18]} 44. Rc2 {[%emt 0:00:07]} fxg3 {[%emt 0:00:36]} 45. Kxg3 {[%emt 0:00:03]} h5 {[%emt 0:00:22]} 46. Kf3 {[%emt 0:00:27]} Rh4 {[%emt 0:00:26]} 47. Kg3 {[%emt 0:00:02]} Re6 {[%emt 0:00:30]} 48. Ra2 {[%emt 0:00:27]} Rxc4 {[%emt 0:00:28]} 49. Rxa7 {[%emt 0:00:13]} Rc5 {[%emt 0:00:23]} 50. Rd7 {[%emt 0:00:38]} Rxb5 {[%emt 0:00:17]} 51. Nc7 {[%emt 0:00:52]} Rb3+ {[%emt 0:00:27]} 52. Kf2 {[%emt 0:00:41]} Rf6+ {[%emt 0:00:27]} 53. Kg2 {[%emt 0:00:29]} Rc6 {[%emt 0:05:13]} 0-1

[Event "Catalonia Championship Veterans 2024"]
[Site "Salou Tarragona"]
[Date "2024.05.15"]
[Round "5.4"]
[White "Tosan Pereira, Felipe"]
[Black "Torrecillas Martinez, Antonio"]
[Result "1/2-1/2"]
[ECO "A07"]
[WhiteElo "2062"]
[BlackElo "2298"]
[Annotator "RC"]
[PlyCount "100"]
[EventDate "2024.05.11"]
[EventType "swiss"]
[EventCountry "ESP"]
[SourceTitle "playchess.com"]
[Source "ChessBase"]
[SourceQuality "1"]
[TimeControl "5400+30"]

1. e4 {[%emt 0:00:05]} e6 {[%emt 0:00:03]} 2. d3 {[%emt 0:00:14]} d5 {[%emt 0:00:08]} 3. Nd2 {[%emt 0:00:12]} Nf6 {[%emt 0:00:02]} 4. Ngf3 {[%emt 0:00:15]} Nc6 {[%emt 0:00:22]} 5. c3 {[%emt 0:04:41]} Bd6 {[%emt 0:01:35]} 6. g3 {[%emt 0:03:21]} O-O {[%emt 0:01:54]} 7. Bg2 {[%emt 0:00:12]} dxe4 {[%emt 0:04:49]} 8. dxe4 {[%emt 0:00:16]} e5 {[%emt 0:00:10]} 9. O-O {[%emt 0:00:32]} a5 {[%emt 0:00:20]} 10. Re1 {[%emt 0:08:42]} Bc5 {[%emt 0:03:57]} 11. h3 {[%emt 0:09:22]} b6 {[%emt 0:18:33]} 12. Qa4 {[%emt 0:04:43]} Bd7 {[%emt 0:10:08]} 13. Qc2 {[%emt 0:01:37]} Qc8 {[%emt 0:12:17]} 14. Nb3 {[%emt 0:03:54]} Bd6 {[%emt 0:06:22]} 15. Kh2 {[%emt 0:01:55]} h6 {[%emt 0:10:20]} 16. Nbd2 {[%emt 0:08:59]} Be6 {[%emt 0:00:15]} 17. Nf1 {[%emt 0:00:50]} Ne7 {[%emt 0:14:20]} 18. Nh4 {[%emt 0:03:12]} g5 {[%emt 0:01:25]} 19. Nf3 {[%emt 0:01:02]} Kg7 {[%emt 0:03:42]} 20. g4 {[%emt 0:46:26]} Qd7 {[%emt 0:03:04]} 21. Ng3 {[%emt 0:00:00]} Rad8 {[%emt 0:00:05]} 22. Be3 {[%emt 0:00:00]} Qc6 {[%emt 0:01:35]} 23. Qc1 {[%emt 0:00:00]} Ng6 {[%emt 0:00:59]} 24. Nf5+ {[%emt 0:00:00]} Bxf5 {[%emt 0:00:15]} 25. gxf5 {[%emt 0:00:00]} Nf4 {[%emt 0:00:56]} 26. Bxf4 {[%emt 0:00:00]} gxf4 {[%emt 0:00:04]} 27. Qc2 {[%emt 0:00:00]} Ng8 {[%emt 0:02:19]} 28. Rad1 {[%emt 0:00:00]} f6 {[%emt 0:00:56]} 29. Rd3 {[%emt 0:00:00]} Be7 {[%emt 0:00:15]} 30. Nh4 {[%emt 0:00:00]} Qc5 {[%emt 0:00:33]} 31. Rxd8 {[%emt 0:00:00]} Rxd8 {[%emt 0:00:27]} 32. Qe2 {[%emt 0:00:00]} Kf8 {[%emt 0:00:37]} 33. Ng6+ {[%emt 0:00:00]} Ke8 {[%emt 0:00:17]} 34. Qh5 {[%emt 0:00:00]} Rd2 {[%emt 0:01:23]} 35. Nxf4+ {[%emt 0:00:00]} Kd7 {[%emt 0:00:20]} 36. Rd1 {[%emt 0:00:00]} Qxf2 {[%emt 0:00:17]} 37. Rxd2+ {[%emt 0:00:00]} Qxd2 {[%emt 0:00:04]} 38. Ne6 {[%emt 0:00:00]} Bd6 {[%emt 0:01:51]} 39. Qf7+ {[%emt 0:00:00]} Ne7 {[%emt 0:00:01]} 40. Qxf6 {[%emt 0:00:00]} Qxb2 {[%emt 0:00:04]} 41. Nf8+ {[%emt 0:01:20]} Ke8 {[%emt 0:00:44]} 42. Qh8 {[%emt 0:00:27]} Qxa2 {[%emt 0:00:39]} 43. Ne6+ {[%emt 0:00:04]} Kd7 {[%emt 0:00:06]} 44. Qd8+ {[%emt 0:00:10]} Kc6 {[%emt 0:00:03]} 45. Qe8+ {[%emt 0:00:42]} Kb7 {[%emt 0:00:17]} 46. Nd8+ {[%emt 0:00:20]} Ka6 {[%emt 0:00:57]} 47. f6 {[%emt 0:00:15]} Nf5 {[%emt 0:01:16]} 48. Qc6 {[%emt 0:07:22]} Ne3 {[%emt 0:00:58]} 49. Qb7+ {[%emt 0:01:24]} Kb5 {[%emt 0:00:01]} 50. Qc6+ {[%emt 0:00:16]} Ka6 {[%emt 0:00:02]} 1/2-1/2

[Event "Catalonia Championship Veterans 2024"]
[Site "Salou Tarragona"]
[Date "2024.05.15"]
[Round "5.5"]
[White "Pogorelov, Ruslan"]
[Black "Noria Silvestre, Joaquin"]
[Result "0-1"]
[ECO "E94"]
[WhiteElo "2282"]
[BlackElo "2126"]
[Annotator "RC"]
[PlyCount "134"]
[EventDate "2024.05.11"]
[EventType "swiss"]
[EventCountry "ESP"]
[SourceTitle "playchess.com"]
[Source "ChessBase"]
[SourceQuality "1"]
[TimeControl "5400+30"]

1. Nf3 {[%emt 0:00:07]} Nf6 {[%emt 0:00:09]} 2. c4 {[%emt 0:00:07]} d6 {[%emt 0:00:08]} 3. d4 {[%emt 0:00:16]} Nbd7 {[%emt 0:00:09]} 4. Nc3 {[%emt 0:00:15]} e5 {[%emt 0:00:09]} 5. e4 {[%emt 0:00:15]} exd4 {[%emt 0:03:03]} 6. Nxd4 {[%emt 0:00:10]} g6 {[%emt 0:00:09]} 7. Be2 {[%emt 0:00:15]} Bg7 {[%emt 0:00:32]} 8. O-O {[%emt 0:00:27]} Nc5 {[%emt 0:01:01]} 9. f3 {[%emt 0:00:14]} O-O {[%emt 0:07:25]} 10. Be3 {[%emt 0:01:18]} a5 {[%emt 0:04:16]} 11. Ndb5 {[%emt 0:00:39]} b6 {[%emt 0:19:02]} 12. Qd2 {[%emt 0:01:18]} Bb7 {[%emt 0:03:46]} 13. Rad1 {[%emt 0:02:08]} Qe7 {[%emt 0:05:35]} 14. Bg5 {[%emt 0:02:23]} Ne6 {[%emt 0:07:51]} 15. Bh4 {[%emt 0:08:08]} Rfe8 {[%emt 0:04:51]} 16. Nd5 {[%emt 0:04:29]} Bxd5 {[%emt 0:01:17]} 17. cxd5 {[%emt 0:01:57]} Nc5 {[%emt 0:02:47]} 18. Bg5 {[%emt 0:03:15]} Qd7 {[%emt 0:08:10]} 19. Be3 {[%emt 0:13:18]} Rf8 {[%emt 0:04:20]} 20. Nd4 {[%emt 0:01:04]} Ne8 {[%emt 0:00:28]} 21. Bb5 {[%emt 0:04:30]} Qc8 {[%emt 0:12:58]} 22. Rfe1 {[%emt 0:11:45]} Nf6 {[%emt 0:02:50]} 23. Nc6 {[%emt 0:04:26]} Kh8 {[%emt 0:02:52]} 24. Bd4 {[%emt 0:02:50]} Nfd7 {[%emt 0:04:26]} 25. f4 {[%emt 0:04:41]} f6 {[%emt 0:00:15]} 26. Re2 {[%emt 0:01:45]} Qe8 {[%emt 0:01:21]} 27. Rde1 {[%emt 0:01:56]} Qf7 {[%emt 0:00:01]} 28. Bc3 {[%emt 0:01:02]} Rae8 {[%emt 0:00:50]} 29. Nd4 {[%emt 0:08:53]} Re7 {[%emt 0:01:28]} 30. f5 {[%emt 0:00:47]} Ne5 {[%emt 0:00:40]} 31. Ne6 {[%emt 0:00:24]} gxf5 {[%emt 0:00:23]} 32. Bxe5 {[%emt 0:04:44]} fxe5 {[%emt 0:00:49]} 33. Nxf8 {[%emt 0:00:19]} Qxf8 {[%emt 0:00:18]} 34. exf5 {[%emt 0:00:23]} e4 {[%emt 0:00:31]} 35. Rf1 {[%emt 0:00:37]} Qf6 {[%emt 0:00:15]} 36. Kh1 {[%emt 0:01:21]} Re5 {[%emt 0:00:40]} 37. g4 {[%emt 0:04:05]} Bh6 {[%emt 0:00:39]} 38. Qd4 {[%emt 0:01:50]} Bg5 {[%emt 0:03:06]} 39. a3 {[%emt 0:02:28]} e3 {[%emt 0:00:00]} 40. h4 {[%emt 0:06:28]} Bxh4 {[%emt 0:00:00]} 41. Rxe3 {[%emt 0:00:19]} Qh6 {[%emt 0:00:00]} 42. Rh3 {[%emt 0:00:56]} Ne4 {[%emt 0:00:00]} 43. Kg2 {[%emt 0:01:59]} Qg5 {[%emt 0:00:00]} 44. Be2 {[%emt 0:01:14]} Nf6 {[%emt 0:00:00]} 45. Bf3 {[%emt 0:00:39]} Nh5 {[%emt 0:00:00]} 46. Bd1 {[%emt 0:00:22]} Nf6 {[%emt 0:00:00]} 47. Qf4 {[%emt 0:00:34]} Qxf4 {[%emt 0:00:00]} 48. Rxf4 {[%emt 0:00:03]} Bg5 {[%emt 0:00:04]} 49. Rd4 {[%emt 0:00:37]} Nxd5 {[%emt 0:00:14]} 50. Rf3 {[%emt 0:00:29]} c5 {[%emt 0:00:37]} 51. Rdd3 {[%emt 0:00:35]} Kg7 {[%emt 0:01:22]} 52. Kg3 {[%emt 0:00:23]} b5 {[%emt 0:00:22]} 53. Rf1 {[%emt 0:00:32]} c4 {[%emt 0:00:10]} 54. Rdf3 {[%emt 0:00:33]} Kf6 {[%emt 0:00:08]} 55. R3f2 {[%emt 0:00:40]} Ne3 {[%emt 0:00:00]} 56. Rh1 {[%emt 0:00:07]} h6 {[%emt 0:00:00]} 57. Bf3 {[%emt 0:00:21]} d5 {[%emt 0:00:00]} 58. Re2 {[%emt 0:00:15]} d4 {[%emt 0:00:00]} 59. Rhe1 {[%emt 0:00:28]} d3 {[%emt 0:00:00]} 60. Rxe3 {[%emt 0:00:40]} Bxe3 {[%emt 0:00:00]} 61. Kg2 {[%emt 0:00:33]} b4 {[%emt 0:01:02]} 62. axb4 {[%emt 0:00:07]} axb4 {[%emt 0:00:08]} 63. Ra1 {[%emt 0:00:15]} c3 {[%emt 0:01:45]} 64. bxc3 {[%emt 0:00:07]} bxc3 {[%emt 0:00:07]} 65. Ra6+ {[%emt 0:00:07]} Ke7 {[%emt 0:00:50]} 66. f6+ {[%emt 0:00:34]} Kf7 {[%emt 0:00:16]} 67. g5 {[%emt 0:02:31]} Rxg5+ {[%emt 0:00:12]} 0-1

[Event "Catalonia Championship Veterans 2024"]
[Site "Salou Tarragona"]
[Date "2024.05.15"]
[Round "5.6"]
[White "Saldana Caballe, Enric"]
[Black "Brusi Noguera, Ricardo Ll."]
[Result "1/2-1/2"]
[ECO "B05"]
[WhiteElo "1967"]
[BlackElo "2059"]
[Annotator "RC"]
[PlyCount "68"]
[EventDate "2024.05.11"]
[EventType "swiss"]
[EventCountry "ESP"]
[SourceTitle "playchess.com"]
[Source "ChessBase"]
[SourceQuality "1"]
[TimeControl "5400+30"]

1. e4 {[%emt 0:00:07]} Nf6 {[%emt 0:00:05]} 2. e5 {[%emt 0:01:30]} Nd5 {[%emt 0:00:07]} 3. d4 {[%emt 0:00:09]} d6 {[%emt 0:00:19]} 4. Nf3 {[%emt 0:00:56]} Bg4 {[%emt 0:00:23]} 5. Be2 {[%emt 0:00:21]} e6 {[%emt 0:00:16]} 6. c4 {[%emt 0:10:43]} Nb6 {[%emt 0:00:15]} 7. O-O {[%emt 0:06:42]} Be7 {[%emt 0:00:22]} 8. Be3 {[%emt 0:01:12]} O-O {[%emt 0:01:20]} 9. Nc3 {[%emt 0:04:57]} d5 {[%emt 0:00:45]} 10. cxd5 {[%emt 0:03:23]} exd5 {[%emt 0:01:02]} 11. h3 {[%emt 0:01:21]} Bxf3 {[%emt 0:06:14]} 12. Bxf3 {[%emt 0:00:11]} c6 {[%emt 0:00:23]} 13. b3 {[%emt 0:02:25]} Na6 {[%emt 0:03:58]} 14. Ne2 {[%emt 0:03:07]} Nc7 {[%emt 0:11:35]} 15. Bg4 {[%emt 0:03:06]} f5 {[%emt 0:01:18]} 16. exf6 {[%emt 0:01:13]} Bxf6 {[%emt 0:01:52]} 17. Bf4 {[%emt 0:04:26]} Re8 {[%emt 0:04:18]} 18. Rc1 {[%emt 0:08:46]} Nc8 {[%emt 0:07:14]} 19. Qd3 {[%emt 0:12:01]} Nd6 {[%emt 0:16:59]} 20. Rfe1 {[%emt 0:02:32]} Ne6 {[%emt 0:05:21]} 21. Be5 {[%emt 0:03:05]} Ne4 {[%emt 0:11:53]} 22. f3 {[%emt 0:10:09]} Bxe5 {[%emt 0:02:12]} 23. dxe5 {[%emt 0:01:23]} Qb6+ {[%emt 0:01:37]} 24. Kh2 {[%emt 0:00:55]} Nf2 {[%emt 0:01:48]} 25. Bxe6+ {[%emt 0:02:45]} Rxe6 {[%emt 0:00:09]} 26. Qd4 {[%emt 0:04:12]} Rae8 {[%emt 0:03:51]} 27. Kg3 {[%emt 0:02:41]} Qxd4 {[%emt 0:05:43]} 28. Nxd4 {[%emt 0:00:11]} Nd3 {[%emt 0:13:11]} 29. Nxe6 Rxe6 30. f4 {[%emt 0:11:01]} Nxc1 {[%emt 0:01:00]} 31. Rxc1 g5 {[%emt 0:00:30]} 32. Re1 {[%emt 0:01:00]} gxf4+ 33. Kxf4 Kf7 34. Kf5 Rh6 {[%emt 0:01:30]} 1/2-1/2

[Event "Catalonia Championship Veterans 2024"]
[Site "Salou Tarragona"]
[Date "2024.05.15"]
[Round "5.7"]
[White "Lacasa Diaz, Josep Anton"]
[Black "Sanchez Criado, Lluis"]
[Result "1-0"]
[ECO "D42"]
[WhiteElo "2335"]
[BlackElo "2060"]
[Annotator "TA"]
[PlyCount "109"]
[EventDate "2024.05.11"]
[EventType "swiss"]
[EventCountry "ESP"]
[SourceTitle "playchess.com"]
[Source "ChessBase"]
[SourceQuality "1"]
[TimeControl "5400+30"]

{[%evp 23,109,0,0,0,13,0,53,33,39,25,50,42,61,69,110,79,114,102,95,32,40,50,66,54,114,97,113,66,77,49,135,131,301,299,345,336,300,65,75,46,159,122,189,212,209,185,150,73,88,72,58,12,399,393,398,404,388,393,476,433,697,388,481,392,377,0,467,294,552,376,347,339,476,441,881,873,812,858,782,745,5302,5302,5285,5285,29975,29976,29971,29956]} 1. Nf3 {[%emt 0:00:41]} d5 {[%emt 0:00:14]} 2. c4 {[%emt 0:00:39]} e6 {[%emt 0:00:42]} 3. e3 {[%emt 0:00:48]} Nf6 {[%emt 0:00:57]} 4. Nc3 {[%emt 0:00:10]} c5 {[%emt 0:02:18]} 5. cxd5 {[%emt 0:02:36]} Nxd5 {[%emt 0:04:54]} 6. d4 {[%emt 0:10:57]} Nc6 {[%emt 0:04:47]} 7. Bd3 {[%emt 0:01:36]} Be7 {[%emt 0:03:55]} 8. O-O {[%emt 0:01:44]} O-O {[%emt 0:01:50]} 9. Qe2 {[%emt 0:13:46]} b6 {[%emt 0:08:54]} 10. Rd1 {[%emt 0:04:45]} Nxc3 {[%emt 0:02:25]} 11. bxc3 {[%emt 0:00:09]} Qc7 {[%emt 0:02:38]} 12. Bb2 {[%emt 0:04:02]} Bb7 {[%emt 0:03:26]} 13. e4 {[%emt 0:01:00]} Na5 {[%emt 0:11:55]} 14. Rac1 {[%emt 0:01:52]} c4 {[%emt 0:02:42]} (14... Rfd8 $11) 15. Bb1 {[%emt 0:00:36]} Rad8 {[%emt 0:02:43]} 16. Re1 {[%emt 0:08:16]} Rfe8 {[%emt 0:03:53]} 17. e5 {[%emt 0:14:04]} b5 {[%emt 0:05:38]} 18. h4 {[%emt 0:02:27]} Bxf3 {[%emt 0:05:07]} 19. Qxf3 {[%emt 0:00:48]} Nc6 {[%emt 0:01:23]} 20. Qe4 {[%emt 0:02:39]} g6 {[%emt 0:00:21]} 21. Rcd1 {[%emt 0:01:16]} (21. Re3 $16) 21... Bf8 {[%emt 0:01:12]} 22. h5 {[%emt 0:00:55]} Ne7 {[%emt 0:01:55]} 23. Re3 {[%emt 0:02:27]} a5 {[%emt 0:05:34]} (23... Nd5 $14) 24. Rh3 $1 $16 {[%emt 0:00:51]} b4 {[%emt 0:05:34]} 25. a3 {[%emt 0:09:44]} ({Better is} 25. Bc1 $1 $16) 25... bxc3 {[%emt 0:02:03]} 26. Bc1 {[%emt 0:01:10]} (26. Rxc3 Rb8 27. Rc2 Rec8 $11) 26... Rb8 {[%emt 0:02:15]} (26... Rd7 $1 $14) 27. Bc2 $1 $16 {[%emt 0:01:35]} (27. Rxc3 Rb3 28. Rxb3 cxb3 $11) (27. hxg6 $6 fxg6 28. Rxc3 Nd5 $11) 27... Nd5 $2 {[%emt 0:02:53]} (27... Rb6 $16 {might work better.} 28. Qg4 (28. Rxc3 Nd5 $14) 28... Reb8) 28. Qh4 $18 {[%emt 0:01:32]} Be7 {[%emt 0:02:48]} 29. Qg4 {[%emt 0:00:24]} Bf8 {[%emt 0:00:43]} 30. Ba4 $2 {[%emt 0:03:46]} ({White should try} 30. Bg5 $18) 30... Re7 $1 $14 {[%emt 0:03:29] [#]} 31. Bg5 $1 {[%emt 0:00:46]} Rb2 {[%emt 0:00:27]} ({Black should play} 31... Rb3 $1 $14) 32. Rc1 $16 {[%emt 0:00:30]} Qb7 {[%emt 0:01:24]} (32... Qc8 $16 {was necessary.}) 33. hxg6 $18 {[%emt 0:01:39]} fxg6 {[%emt 0:00:25]} 34. Bxe7 {[%emt 0:00:20]} Qxe7 {[%emt 0:00:06] [#]} 35. Bc2 {[%emt 0:01:15]} (35. Bc6 $142 $1) 35... Qf7 $16 {[%emt 0:01:55]} 36. Rf3 {[%emt 0:00:10]} Qe8 {[%emt 0:01:04]} 37. Be4 {[%emt 0:01:06]} (37. Ba4 $14 {is superior.} Qc8 38. Rfxc3 Nxc3 39. Rxc3) 37... c2 $2 {[%emt 0:01:17][%mdl 8192]} (37... Bxa3 $11 38. Bxd5 exd5) 38. Rxc2 $18 {[%emt 0:00:43]} Rxc2 {[%emt 0:00:48]} 39. Bxc2 {[%emt 0:00:02]} c3 {[%emt 0:00:44]} 40. Ba4 {[%emt 0:03:00]} Qc8 {[%emt 0:00:57]} 41. Bb3 {[%emt 0:00:36]} Qc6 {[%emt 0:00:46]} (41... Kg7 $142 42. Bc2 Bxa3) 42. a4 {[%emt 0:01:38]} Ba3 {[%emt 0:00:42]} 43. Bc2 {[%emt 0:00:29]} Qe8 {[%emt 0:00:49]} 44. Bb3 {[%emt 0:00:40]} Qc6 {[%emt 0:00:18]} 45. Qe4 {[%emt 0:01:01]} Bb2 $2 {[%emt 0:00:32]} (45... Be7 46. Kh2 Qd7) 46. Bc2 {[%emt 0:01:11]} Qe8 {[%emt 0:00:55]} 47. Rg3 {[%emt 0:00:40]} Nb4 {[%emt 0:00:35]} (47... Qf7 {is a better defense.} 48. Rf3 Qe7) 48. Bb3 $18 {[%emt 0:00:27]} Qd7 {[%emt 0:00:55]} (48... Qe7 $142 49. Qa8+ Kg7) 49. Qa8+ $18 {[%emt 0:00:38]} Kg7 {[%emt 0:00:22]} 50. Rf3 {[%emt 0:00:02]} (50. Qxa5 c2 51. Bxc2 (51. Qxb4 $2 c1=Q+ 52. Kh2 Bxd4 $19) 51... Nxc2 $18) 50... Qe7 {[%emt 0:00:30]} 51. Qc8 {[%emt 0:00:49]} ({Inferior is} 51. Bxe6 c2 52. Qg8+ (52. Qxa5 c1=Q+ 53. Kh2 Qh4+ 54. Rh3 Qhf4+ 55. Rg3 Bxd4 56. Qd8 Bxf2 57. Qg8+ Kh6) 52... Kh6 53. Rh3+ Kg5 54. Rg3+ (54. Qxh7 c1=Q+ 55. Kh2 Qxh7 56. Rxh7 Qf4+ 57. Kg1 Bxd4 58. Rf7 Bxf2+ 59. Kf1 Qd2 60. g3 Qe1+ 61. Kg2 Bd4) (54. f4+ $2 Kxf4 55. Rf3+ Ke4 $19) 54... Kh6 55. Rh3+ Kg5 56. Rg3+ (56. Qxh7 $2 c1=Q+ 57. Kh2 Qf4+ 58. Rg3+ Qxg3+ 59. Kxg3 Qxh7 $19) (56. f4+ $2 Kxf4 57. Rf3+ Ke4 $19) 56... Kh5 $11) 51... Nd5 {[%emt 0:00:22]} 52. Bxd5 {[%emt 0:00:11]} exd5 {[%emt 0:00:03]} 53. e6 {[%emt 0:00:11]} Kh6 {[%emt 0:00:51]} 54. Rf7 {[%emt 0:00:30]} c2 {[%emt 0:01:01]} 55. Rxe7 {[%emt 0:00:22]} 1-0

[Event "Catalonia Championship Veterans 2024"]
[Site "Salou Tarragona"]
[Date "2024.05.15"]
[Round "5.8"]
[White "Franzoni Ladron de Guevara, Enric"]
[Black "Fernandez Muixi, Francesc"]
[Result "0-1"]
[ECO "B31"]
[WhiteElo "1854"]
[BlackElo "1988"]
[Annotator "RC"]
[PlyCount "141"]
[EventDate "2024.05.11"]
[EventType "swiss"]
[EventCountry "ESP"]
[SourceTitle "playchess.com"]
[Source "ChessBase"]
[SourceQuality "1"]
[TimeControl "5400+30"]

1. e4 {[%emt 0:00:04]} c5 {[%emt 0:00:07]} 2. Nf3 {[%emt 0:00:06]} Nc6 {[%emt 0:00:04]} 3. Bb5 {[%emt 0:00:11]} g6 {[%emt 0:00:13]} 4. O-O {[%emt 0:00:14]} Bg7 {[%emt 0:00:12]} 5. Bxc6 {[%emt 0:00:21]} dxc6 {[%emt 0:00:08]} 6. d3 {[%emt 0:00:25]} Nf6 {[%emt 0:04:34]} 7. h3 {[%emt 0:00:19]} Nd7 {[%emt 0:00:55]} 8. Nbd2 {[%emt 0:02:12]} Qc7 {[%emt 0:03:51]} 9. Re1 {[%emt 0:03:26]} e5 {[%emt 0:00:15]} 10. a4 {[%emt 0:01:22]} b6 {[%emt 0:01:39]} 11. Nc4 {[%emt 0:03:02]} Nf8 {[%emt 0:01:28]} 12. b3 {[%emt 0:01:18]} Ne6 {[%emt 0:00:16]} 13. c3 {[%emt 0:03:26]} O-O {[%emt 0:02:09]} 14. Be3 {[%emt 0:04:08]} Rd8 {[%emt 0:02:34]} 15. Qc2 {[%emt 0:00:21]} Ba6 {[%emt 0:22:36]} 16. Red1 {[%emt 0:04:33]} Rd7 {[%emt 0:00:32]} 17. Nb2 {[%emt 0:02:44]} Rad8 {[%emt 0:00:39]} 18. c4 {[%emt 0:00:39]} f6 {[%emt 0:10:31]} 19. g3 {[%emt 0:01:49]} Bc8 {[%emt 0:00:46]} 20. Kg2 {[%emt 0:00:28]} a5 {[%emt 0:00:36]} 21. Rh1 {[%emt 0:00:38]} Bf8 {[%emt 0:01:05]} 22. Rag1 {[%emt 0:03:30]} Rf7 {[%emt 0:12:16]} 23. Qe2 {[%emt 0:08:17]} Bg7 {[%emt 0:00:51]} 24. Kf1 {[%emt 0:04:43]} Qd6 {[%emt 0:00:52]} 25. Ke1 {[%emt 0:01:17]} Nd4 {[%emt 0:02:27]} 26. Nxd4 {[%emt 0:00:39]} cxd4 {[%emt 0:00:08]} 27. Bc1 {[%emt 0:03:39]} Qb4+ {[%emt 0:00:13]} 28. Qd2 {[%emt 0:00:30]} Qxb3 {[%emt 0:00:39]} 29. g4 {[%emt 0:01:57]} Bf8 {[%emt 0:00:16]} 30. Ke2 {[%emt 0:00:55]} Bb4 {[%emt 0:02:23]} 31. Qd1 {[%emt 0:00:43]} Qxd1+ {[%emt 0:01:01]} 32. Nxd1 {[%emt 0:48:34]} c5 {[%emt 0:30:14]} 33. f4 {[%emt 0:00:00]} Bd7 {[%emt 0:00:00]} 34. Nb2 {[%emt 0:00:00]} Ba3 {[%emt 0:00:00]} 35. f5 {[%emt 0:00:00]} gxf5 {[%emt 0:00:00]} 36. gxf5+ {[%emt 0:00:00]} Kf8 {[%emt 0:00:00]} 37. h4 {[%emt 0:00:00]} Bxb2 {[%emt 0:00:00]} 38. Bxb2 {[%emt 0:00:00]} Bxa4 {[%emt 0:00:00]} 39. h5 {[%emt 0:00:00]} Rg7 {[%emt 0:00:00]} 40. h6 {[%emt 0:00:00]} Rxg1 {[%emt 0:00:00]} 41. Rxg1 {[%emt 0:00:00]} Rd7 {[%emt 0:00:00]} 42. Ba3 {[%emt 0:00:00]} Bb3 {[%emt 0:00:00]} 43. Kd2 {[%emt 0:00:00]} Ba4 {[%emt 0:00:00]} 44. Rb1 {[%emt 0:00:00]} Rd6 {[%emt 0:00:00]} 45. Rxb6 {[%emt 0:00:00]} Rxb6 {[%emt 0:00:00]} 46. Bxc5+ {[%emt 0:00:00]} Ke8 {[%emt 0:00:00]} 47. Bxb6 {[%emt 0:00:00]} Kd7 {[%emt 0:00:00]} 48. Bxa5 {[%emt 0:00:00]} Bb3 {[%emt 0:00:00]} 49. Bb4 {[%emt 0:00:00]} Ba4 {[%emt 0:00:00]} 50. Kc1 {[%emt 0:00:00]} Bb3 {[%emt 0:00:00]} 51. Be1 {[%emt 0:00:00]} Ba4 {[%emt 0:00:00]} 52. Bh4 {[%emt 0:00:00]} Ke7 {[%emt 0:00:00]} 53. Kb2 {[%emt 0:00:00]} Bd1 {[%emt 0:00:00]} 54. c5 {[%emt 0:00:00]} Ba4 {[%emt 0:00:00]} 55. Ka3 {[%emt 0:00:00]} Bb5 {[%emt 0:00:00]} 56. Kb4 {[%emt 0:00:00]} Bxd3 {[%emt 0:00:00]} 57. c6 {[%emt 0:00:00]} Bxe4 {[%emt 0:00:00]} 58. Kc5 {[%emt 0:00:00]} Bxf5 {[%emt 0:00:00]} 59. Kc4 {[%emt 0:00:00]} Bc8 {[%emt 0:00:00]} 60. Kd5 {[%emt 0:00:00]} Bh3 {[%emt 0:00:00]} 61. Be1 {[%emt 0:00:00]} Kf7 {[%emt 0:05:47]} 62. c7 {[%emt 0:00:00]} Bc8 {[%emt 0:00:44]} 63. Bb4 {[%emt 0:00:00]} Bb7+ {[%emt 0:01:06]} 64. Kd6 {[%emt 0:06:28]} Kg6 {[%emt 0:00:14]} 65. Ke7 {[%emt 0:01:24]} f5 {[%emt 0:01:27]} 66. Bd2 {[%emt 0:00:36]} e4 {[%emt 0:00:17]} 67. Bf4 {[%emt 0:00:33]} Kh5 {[%emt 0:01:10]} 68. Kf6 {[%emt 0:01:52]} Kg4 {[%emt 0:01:16]} 69. Ke5 {[%emt 0:02:58]} d3 {[%emt 0:00:59]} 70. Bd2 {[%emt 0:02:02]} Kf3 {[%emt 0:00:09]} 71. Kd4 {[%emt 0:03:37]} 0-1